fUSD/lending_fUSD_20260625
["ID","MTS","AMOUNT","RATE_DAILY","PERIOD"]
[426340976,1782325842000,-500.0,0.00014999,2]
[426340977,1782325842000,-500.0,0.00014999,2]
[426340973,1782325842000,-500.0,0.00014999,2]
[426340975,1782325842000,-500.0,0.00014999,2]
[426340978,1782325842000,-500.0,0.00014999,2]
[426340991,1782325842000,-165.0,0.00014999,2]
[426340992,1782325842000,-165.0,0.00014999,2]
[426340989,1782325842000,-500.0,0.00014999,2]
[426340967,1782325842000,-500.0,0.00014999,2]
[426340972,1782325842000,-500.0,0.00014999,2]
[426340966,1782325842000,-500.0,0.00014999,2]
[426340948,1782325842000,-500.0,0.00014999,2]
[426340963,1782325842000,-500.0,0.00014999,2]
[426340994,1782325842000,-165.0,0.00014999,2]
[426340947,1782325842000,-500.0,0.00014999,2]
[426340953,1782325842000,-500.0,0.00014999,2]
[426340952,1782325842000,-500.0,0.00014999,2]
[426340950,1782325842000,-500.0,0.00014999,2]
[426340949,1782325842000,-500.0,0.00014999,2]
[426340951,1782325842000,-500.0,0.00014999,2]
[426340954,1782325842000,-500.0,0.00014999,2]
[426340946,1782325842000,-500.0,0.00014999,2]
[426340945,1782325842000,-500.0,0.00014999,2]
[426340957,1782325842000,-500.0,0.00014999,2]
[426340955,1782325842000,-500.0,0.00014999,2]
[426340958,1782325842000,-500.0,0.00014999,2]
[426340962,1782325842000,-500.0,0.00014999,2]
[426340959,1782325842000,-500.0,0.00014999,2]
[426340956,1782325842000,-500.0,0.00014999,2]
[426340960,1782325842000,-500.0,0.00014999,2]
[426340961,1782325842000,-500.0,0.00014999,2]
[426340965,1782325842000,-500.0,0.00014999,2]
[426340964,1782325842000,-500.0,0.00014999,2]
[426340986,1782325842000,-500.0,0.00014999,2]
[426340988,1782325842000,-266.431724,0.00014999,2]
[426340984,1782325842000,-500.0,0.00014999,2]
[426341013,1782325842000,-1168.42,0.00014999,2]
[426341017,1782325842000,-1168.42,0.00014999,2]
[426341018,1782325842000,-1168.42,0.00014999,2]
[426341020,1782325842000,-1168.42,0.00014999,2]
[426341019,1782325842000,-1168.42,0.00014999,2]
[426341015,1782325842000,-1168.42,0.00014999,2]
[426341014,1782325842000,-1168.42,0.00014999,2]
[426341016,1782325842000,-1168.42,0.00014999,2]
[426341009,1782325842000,-1168.42,0.00014999,2]
[426341022,1782325842000,-1168.42,0.00014999,2]
[426341021,1782325842000,-1168.42,0.00014999,2]
[426341029,1782325842000,-300.0,0.00014999,2]
[426341023,1782325842000,-1168.42,0.00014999,2]
[426341030,1782325842000,-4705611.03927202,0.00015,2]
[426341024,1782325842000,-1168.63568917,0.00014999,2]
[426341027,1782325842000,-500.0,0.00014999,2]
[426341025,1782325842000,-500.0,0.00014999,2]
[426340990,1782325842000,-500.0,0.00014999,2]
[426341028,1782325842000,-569.06,0.00014999,2]
[426341011,1782325842000,-1168.42,0.00014999,2]
[426341026,1782325842000,-500.0,0.00014999,2]
[426341012,1782325842000,-1168.42,0.00014999,2]
[426341010,1782325842000,-1168.42,0.00014999,2]
[426340985,1782325842000,-500.0,0.00014999,2]
[426340987,1782325842000,-500.0,0.00014999,2]
[426340993,1782325842000,-500.0,0.00014999,2]
[426340983,1782325842000,-500.0,0.00014999,2]
[426341005,1782325842000,-500.0,0.00014999,2]
[426340996,1782325842000,-166.76835451,0.00014999,2]
[426341006,1782325842000,-500.0,0.00014999,2]
[426341007,1782325842000,-500.0,0.00014999,2]
[426340982,1782325842000,-500.0,0.00014999,2]
[426340995,1782325842000,-500.0,0.00014999,2]
[426341001,1782325842000,-500.0,0.00014999,2]
[426341003,1782325842000,-500.0,0.00014999,2]
[426341002,1782325842000,-500.0,0.00014999,2]
[426341004,1782325842000,-500.0,0.00014999,2]
[426341000,1782325842000,-500.0,0.00014999,2]
[426341008,1782325842000,-207.02,0.00014999,2]
[426340998,1782325842000,-500.0,0.00014999,2]
[426340999,1782325842000,-500.0,0.00014999,2]
[426340997,1782325842000,-500.0,0.00014999,2]
[426341037,1782325843000,-25000.0,0.00015,2]
[426341036,1782325843000,-596.74210245,0.00015,2]
[426341039,1782325843000,-2687.29597417,0.00015,2]
[426341038,1782325843000,-3712.01848,0.00015,2]
[426341043,1782325843000,-146720.02406081,0.00015,2]
[426341041,1782325843000,-5059.65,0.00013699,2]
[426341042,1782325843000,-235672.61838925,0.00015,2]
[426341044,1782325843000,-526.24433274,0.00015,2]
[426341040,1782325843000,-2177.18067092,0.00015,2]
[426341047,1782325844000,-742.47764884,0.00015,2]
[426341049,1782325844000,-1261.6729855,0.00013471,2]
[426341050,1782325844000,-3014.43616801,0.00014337,2]
[426341052,1782325844000,-261.9613998,0.00014681,2]
[426341051,1782325844000,-1264.77994065,0.00014681,2]
[426341057,1782325844000,-4660.59408473,0.00014681,2]
[426341054,1782325844000,-1068.475,0.00014681,2]
[426341056,1782325844000,-2099.213705,0.00014681,2]
[426341055,1782325844000,-841.78985,0.00014681,2]
[426341058,1782325844000,-5076.08934572,0.00014681,2]
[426341059,1782325844000,-1275.56708803,0.00014681,2]
[426341053,1782325844000,-738.61932677,0.00014681,2]
[426341062,1782325846000,-662.87313183,0.00014186,2]
[426341063,1782325846000,-1671.48795231,0.00014681,2]
[426341064,1782325846000,-1556.8609,0.00014681,2]
[426341061,1782325846000,-598.79985367,0.00014186,2]
[426341065,1782325846000,-2022.98867957,0.00014681,2]
[426341067,1782325846000,-347.45355905,0.00014989,2]
[426341068,1782325846000,-183.69644025,0.0001499,2]
[426341066,1782325846000,-743.04304443,0.00014989,2]
[426341072,1782325858000,663.49,0.00025929,120]
[426341095,1782326106000,-1294083.96616012,0.00037592,30]
[426341085,1782326106000,-1210807.43670916,0.00037592,90]
[426341086,1782326106000,-4000.0,0.00037592,31]
[426341087,1782326106000,-27193.71691736,0.00037592,30]
[426341088,1782326106000,-230769.40559414,0.00037592,30]
[426341089,1782326106000,-122418.74124097,0.00037592,30]
[426341091,1782326106000,-2757900.58366623,0.00037592,30]
[426341090,1782326106000,-22724.51540046,0.00037592,30]
[426341094,1782326106000,-21283.85551686,0.00037592,30]
[426341092,1782326106000,-32425.999998,0.00037592,30]
[426341093,1782326106000,-9108.48927222,0.00037592,30]
[426341104,1782326106000,-2037937.42540102,0.00037592,30]
[426341099,1782326106000,-503853.80690865,0.00037592,30]
[426341098,1782326106000,-12253.69450286,0.00037592,30]
[426341106,1782326106000,-29366.97646506,0.00037592,30]
[426341103,1782326106000,-159173.59743495,0.00037592,30]
[426341107,1782326106000,-143048.7600109,0.00037592,30]
[426341105,1782326106000,-8344.4982302,0.00037592,30]
[426341101,1782326106000,-27108.53670508,0.00037592,30]
[426341100,1782326106000,-604071.48570178,0.00037592,30]
[426341097,1782326106000,-1139146.51112431,0.00037592,30]
[426341096,1782326106000,-200000.93,0.00037592,120]
[426341102,1782326106000,-209739.26571869,0.00037592,30]
[426341118,1782326107000,-10000.0,0.00037592,30]
[426341124,1782326107000,-10000.0,0.00037592,30]
[426341122,1782326107000,-10000.0,0.00037592,30]
[426341121,1782326107000,-10000.0,0.00037592,30]
[426341119,1782326107000,-10000.0,0.00037592,30]
[426341120,1782326107000,-10000.0,0.00037592,30]
[426341117,1782326107000,-10000.0,0.00037592,30]
[426341112,1782326107000,-85921.13901478,0.00037592,30]
[426341116,1782326107000,-10000.0,0.00037592,30]
[426341114,1782326107000,-10000.0,0.00037592,30]
[426341113,1782326107000,-34417.82617304,0.00037592,30]
[426341125,1782326107000,-10000.0,0.00037592,30]
[426341111,1782326107000,-2933956.33970599,0.00037592,30]
[426341108,1782326107000,-1683947.83269403,0.00037592,30]
[426341109,1782326107000,-323618.38721108,0.00037592,30]
[426341110,1782326107000,-285340.03311985,0.00037592,30]
[426341115,1782326107000,-10000.0,0.00037592,30]
[426341126,1782326107000,-10000.0,0.00037592,30]
[426341123,1782326107000,-10000.0,0.00037592,30]
[426341127,1782326107000,-10000.0,0.00037592,30]
[426341128,1782326107000,-10000.0,0.00037592,30]
[426341145,1782326107000,-10000.0,0.00037592,30]
[426341144,1782326107000,-10000.0,0.00037592,30]
[426341143,1782326107000,-10000.0,0.00037592,30]
[426341141,1782326107000,-10000.0,0.00037592,30]
[426341142,1782326107000,-10000.0,0.00037592,30]
[426341139,1782326107000,-10000.0,0.00037592,30]
[426341140,1782326107000,-10000.0,0.00037592,30]
[426341137,1782326107000,-10000.0,0.00037592,30]
[426341146,1782326107000,-10000.0,0.00037592,30]
[426341138,1782326107000,-10000.0,0.00037592,30]
[426341135,1782326107000,-10000.0,0.00037592,30]
[426341131,1782326107000,-10000.0,0.00037592,30]
[426341134,1782326107000,-10000.0,0.00037592,30]
[426341133,1782326107000,-10000.0,0.00037592,30]
[426341132,1782326107000,-10000.0,0.00037592,30]
[426341130,1782326107000,-10000.0,0.00037592,30]
[426341129,1782326107000,-10000.0,0.00037592,30]
[426341136,1782326107000,-10000.0,0.00037592,30]
[426341159,1782326108000,-10000.0,0.00037592,30]
[426341158,1782326108000,-10000.0,0.00037592,30]
[426341163,1782326108000,-10000.0,0.00037592,30]
[426341161,1782326108000,-10000.0,0.00037592,30]
[426341162,1782326108000,-10000.0,0.00037592,30]
[426341156,1782326108000,-10000.0,0.00037592,30]
[426341160,1782326108000,-10000.0,0.00037592,30]
[426341157,1782326108000,-10000.0,0.00037592,30]
[426341164,1782326108000,-10000.0,0.00037592,30]
[426341154,1782326108000,-10000.0,0.00037592,30]
[426341153,1782326108000,-10000.0,0.00037592,30]
[426341152,1782326108000,-10000.0,0.00037592,30]
[426341150,1782326108000,-10000.0,0.00037592,30]
[426341149,1782326108000,-10000.0,0.00037592,30]
[426341147,1782326108000,-10000.0,0.00037592,30]
[426341148,1782326108000,-10000.0,0.00037592,30]
[426341155,1782326108000,-10000.0,0.00037592,30]
[426341165,1782326108000,-10000.0,0.00037592,30]
[426341151,1782326108000,-10000.0,0.00037592,30]
[426341167,1782326108000,-10000.0,0.00037592,30]
[426341169,1782326108000,-10000.0,0.00037592,30]
[426341183,1782326108000,-331.0,0.00037592,120]
[426341182,1782326108000,-217.0,0.00037592,120]
[426341181,1782326108000,-150.0,0.00037592,120]
[426341180,1782326108000,-5553.30308435,0.00037592,30]
[426341178,1782326108000,-10000.0,0.00037592,30]
[426341179,1782326108000,-10000.0,0.00037592,30]
[426341176,1782326108000,-10000.0,0.00037592,30]
[426341184,1782326108000,-237.0,0.00037592,120]
[426341174,1782326108000,-10000.0,0.00037592,30]
[426341175,1782326108000,-10000.0,0.00037592,30]
[426341172,1782326108000,-10000.0,0.00037592,30]
[426341173,1782326108000,-10000.0,0.00037592,30]
[426341171,1782326108000,-10000.0,0.00037592,30]
[426341170,1782326108000,-10000.0,0.00037592,30]
[426341168,1782326108000,-10000.0,0.00037592,30]
[426341166,1782326108000,-10000.0,0.00037592,30]
[426341177,1782326108000,-10000.0,0.00037592,30]
[426341200,1782326109000,-10790.93127496,0.00037592,120]
[426341199,1782326109000,-4607.29883518,0.00037592,30]
[426341197,1782326109000,-152.85859855,0.00037592,60]
[426341198,1782326109000,-1726.46095369,0.00037592,120]
[426341196,1782326109000,-897.52740129,0.00037592,120]
[426341195,1782326109000,-193.0,0.00037592,120]
[426341193,1782326109000,-3056.99414052,0.00037592,120]
[426341188,1782326109000,-154.30579745,0.00037592,30]
[426341192,1782326109000,-237.49038203,0.00037592,120]
[426341191,1782326109000,-2012.0,0.00037592,120]
[426341190,1782326109000,-168.5162464,0.00037592,120]
[426341186,1782326109000,-258.0,0.00037592,120]
[426341187,1782326109000,-245.20585639,0.00037592,120]
[426341185,1782326109000,-183.22977172,0.00037592,120]
[426341201,1782326109000,-263.97812682,0.00037592,120]
[426341194,1782326109000,-1577.14390401,0.00037592,60]
[426341203,1782326109000,-799.4604969,0.00037592,120]
[426341189,1782326109000,-41462.0,0.00037592,30]
[426341205,1782326109000,-7023.08230344,0.00037592,120]
[426341202,1782326109000,-2499.20605905,0.00037592,120]
[426341221,1782326109000,-425.0,0.00037592,120]
[426341218,1782326109000,-219.20214703,0.00037592,120]
[426341217,1782326109000,-1193.60538826,0.00037592,120]
[426341220,1782326109000,-150.0,0.00037592,120]
[426341216,1782326109000,-3428.0,0.00037592,120]
[426341213,1782326109000,-2808.85,0.00037592,120]
[426341215,1782326109000,-220.57,0.00037592,60]
[426341219,1782326109000,-215.735094,0.00037592,120]
[426341212,1782326109000,-1057514.75200845,0.00037592,30]
[426341209,1782326109000,-6972.12751008,0.00037592,120]
[426341211,1782326109000,-4642.50169169,0.00037592,120]
[426341210,1782326109000,-50000.0,0.00037592,120]
[426341208,1782326109000,-603.16,0.00037592,120]
[426341206,1782326109000,-4514.31698,0.00037592,120]
[426341204,1782326109000,-1346.95966356,0.00037592,120]
[426341207,1782326109000,-213.0,0.00037592,120]
[426341214,1782326109000,-2652.00364392,0.00037592,60]
[426341222,1782326110000,-100000.0,0.00037592,30]
[426341225,1782326110000,-266.828935,0.00037592,30]
[426341223,1782326110000,-50000.0,0.00037592,30]
[426341226,1782326110000,-243195.0,0.00037592,60]
[426341227,1782326110000,-188657.63710747,0.00037592,90]
[426341224,1782326110000,-382000.0,0.00037592,30]
[426341228,1782326115000,-811342.36289253,0.00037592,90]
[426341229,1782326115000,-1000000.0,0.00037592,120]
[426341230,1782326115000,-25000.0,0.00037592,30]
[426341232,1782326115000,-245.0,0.00037592,120]
[426341231,1782326115000,-504.0,0.00037592,120]
[426341234,1782326115000,-2186.24728468,0.00037592,120]
[426341235,1782326115000,-6222209.79257668,0.00037592,30]
[426341236,1782326115000,-62013.26004982,0.00037592,30]
[426341233,1782326115000,-466.0,0.00037592,60]
[426341239,1782326115000,-1414.02,0.00037592,120]
[426341238,1782326115000,-1500.0,0.00037592,120]
[426341240,1782326115000,-5100.0,0.00037592,39]
[426341241,1782326115000,-1370.0,0.00037592,120]
[426341242,1782326115000,-586.0,0.00037592,120]
[426341244,1782326115000,-619.0,0.00037592,120]
[426341243,1782326115000,-618.0,0.00037592,120]
[426341245,1782326115000,-497145.28842801,0.00037592,60]
[426341246,1782326115000,-288.57,0.00037592,30]
[426341237,1782326115000,-140976.77015636,0.00037592,30]
[426341259,1782326116000,-267.1667122,0.00037592,60]
[426341257,1782326116000,-329.0,0.00037592,120]
[426341261,1782326116000,-240.73734796,0.00037592,120]
[426341264,1782326116000,-244.07725261,0.00037592,120]
[426341263,1782326116000,-179.65765782,0.00037592,120]
[426341262,1782326116000,-162.69933317,0.00037592,120]
[426341258,1782326116000,-236.0,0.00037592,120]
[426341260,1782326116000,-152.6,0.00037592,120]
[426341253,1782326116000,-50712.5,0.00037592,30]
[426341255,1782326116000,-757.0,0.00037592,120]
[426341256,1782326116000,-218.0,0.00037592,120]
[426341254,1782326116000,-1948.14005,0.00037592,120]
[426341251,1782326116000,-104084.97,0.00037592,120]
[426341252,1782326116000,-199.0482355,0.00037592,120]
[426341249,1782326116000,-179.66689678,0.00037592,120]
[426341250,1782326116000,-213165.74171509,0.00037592,31]
[426341248,1782326116000,-500.0,0.00037592,120]
[426341247,1782326116000,-170.63,0.00037592,30]
[426341265,1782326116000,-506475.23253658,0.00037592,120]
[426341266,1782326116000,-236.37,0.00037592,120]
[426341279,1782326116000,-583.93715275,0.00037592,120]
[426341269,1782326116000,-17698.81338383,0.00037592,120]
[426341287,1782326116000,-1822.0,0.00037592,120]
[426341286,1782326116000,-5178.30947842,0.00037592,120]
[426341285,1782326116000,-42454.76502628,0.00037592,60]
[426341284,1782326116000,-15420.40507042,0.00037592,30]
[426341283,1782326116000,-456.21,0.00037592,30]
[426341282,1782326116000,-2307.99372748,0.00037592,30]
[426341281,1782326116000,-5011.79582486,0.00037592,60]
[426341278,1782326116000,-1184.99286327,0.00037592,120]
[426341280,1782326116000,-5458.26456139,0.00037592,30]
[426341267,1782326116000,-6081.0,0.00037592,90]
[426341275,1782326116000,-4405.86207006,0.00037592,120]
[426341274,1782326116000,-6802.28765388,0.00037592,60]
[426341276,1782326116000,-14902.20182412,0.00037592,120]
[426341272,1782326116000,-155.15107231,0.00037592,30]
[426341273,1782326116000,-164.56811519,0.00037592,30]
[426341271,1782326116000,-3191.0,0.00037592,120]
[426341270,1782326116000,-756.21794852,0.00037592,30]
[426341268,1782326116000,-1864.069998,0.00037592,120]
[426341277,1782326116000,-171.32997332,0.00037592,120]
[426341302,1782326117000,-459.15083779,0.00037592,120]
[426341303,1782326117000,-459.15083779,0.00037592,120]
[426341307,1782326117000,-459.15083779,0.00037592,120]
[426341305,1782326117000,-459.15083779,0.00037592,120]
[426341306,1782326117000,-459.15083779,0.00037592,120]
[426341299,1782326117000,-164696.89407319,0.00037592,32]
[426341304,1782326117000,-459.15083779,0.00037592,120]
[426341300,1782326117000,-3016672.8098988,0.00037592,30]
[426341292,1782326117000,-14992.0,0.00037592,30]
[426341296,1782326117000,-680.6120616,0.00037592,120]
[426341295,1782326117000,-248.49,0.00037592,30]
[426341297,1782326117000,-403.21130035,0.00037592,120]
[426341294,1782326117000,-164.0,0.00037592,120]
[426341293,1782326117000,-214.27690979,0.00037592,120]
[426341291,1782326117000,-2643.587708,0.00037592,60]
[426341290,1782326117000,-4000.0,0.00037592,30]
[426341308,1782326117000,-459.15083779,0.00037592,120]
[426341298,1782326117000,-202334.84426396,0.00037592,120]
[426341288,1782326117000,-475.0,0.00037592,60]
[426341311,1782326117000,-459.15083779,0.00037592,120]
[426341309,1782326117000,-459.15083779,0.00037592,120]
[426341310,1782326117000,-459.15083779,0.00037592,120]
[426341330,1782326117000,-4166.43196744,0.00037592,120]
[426341325,1782326117000,-4166.43196744,0.00037592,120]
[426341329,1782326117000,-4166.43196744,0.00037592,120]
[426341327,1782326117000,-4166.43196744,0.00037592,120]
[426341322,1782326117000,-4166.43196744,0.00037592,120]
[426341324,1782326117000,-4166.43196744,0.00037592,120]
[426341323,1782326117000,-4166.43196744,0.00037592,120]
[426341328,1782326117000,-4166.43196744,0.00037592,120]
[426341320,1782326117000,-4166.43196744,0.00037592,120]
[426341321,1782326117000,-4166.43196744,0.00037592,120]
[426341312,1782326117000,-459.1508378,0.00037592,120]
[426341316,1782326117000,-18000.0,0.00037592,115]
[426341315,1782326117000,-837.64,0.00037592,120]
[426341313,1782326117000,-448.61137722,0.00037592,120]
[426341318,1782326117000,-1000000.0,0.00037592,60]
[426341319,1782326117000,-594321.74,0.00037592,60]
[426341317,1782326117000,-97041.0,0.00037592,30]
[426341340,1782326118000,-4166.43196744,0.00037592,120]
[426341347,1782326118000,-542.44426172,0.00037592,120]
[426341346,1782326118000,-166.03205056,0.00037592,120]
[426341345,1782326118000,-166.98397472,0.00037592,120]
[426341344,1782326118000,-4166.43196737,0.00037592,120]
[426341342,1782326118000,-4166.43196744,0.00037592,120]
[426341343,1782326118000,-4166.43196744,0.00037592,120]
[426341338,1782326118000,-4166.43196744,0.00037592,120]
[426341332,1782326118000,-4166.43196744,0.00037592,120]
[426341339,1782326118000,-4166.43196744,0.00037592,120]
[426341336,1782326118000,-4166.43196744,0.00037592,120]
[426341337,1782326118000,-4166.43196744,0.00037592,120]
[426341335,1782326118000,-4166.43196744,0.00037592,120]
[426341348,1782326118000,-10000.0,0.00037592,90]
[426341331,1782326118000,-4166.43196744,0.00037592,120]
[426341333,1782326118000,-4166.43196744,0.00037592,120]
[426341341,1782326118000,-4166.43196744,0.00037592,120]
[426341349,1782326118000,-10000.0,0.00037592,60]
[426341334,1782326118000,-4166.43196744,0.00037592,120]
[426341351,1782326118000,-1885.96301466,0.00037592,60]
[426341368,1782326118000,-487.0,0.00037592,120]
[426341367,1782326118000,-487.0,0.00037592,120]
[426341365,1782326118000,-487.0,0.00037592,120]
[426341366,1782326118000,-487.0,0.00037592,120]
[426341364,1782326118000,-487.0,0.00037592,120]
[426341361,1782326118000,-487.0,0.00037592,120]
[426341363,1782326118000,-487.0,0.00037592,120]
[426341362,1782326118000,-487.0,0.00037592,120]
[426341350,1782326118000,-1012.12397284,0.00037592,120]
[426341360,1782326118000,-487.0,0.00037592,120]
[426341359,1782326118000,-487.0,0.00037592,120]
[426341357,1782326118000,-487.0,0.00037592,120]
[426341356,1782326118000,-487.0,0.00037592,120]
[426341355,1782326118000,-487.0,0.00037592,120]
[426341354,1782326118000,-487.0,0.00037592,120]
[426341353,1782326118000,-487.0,0.00037592,120]
[426341352,1782326118000,-487.0,0.00037592,120]
[426341358,1782326118000,-487.0,0.00037592,120]
[426341378,1782326119000,-487.0,0.00037592,120]
[426341382,1782326119000,-487.0,0.00037592,120]
[426341385,1782326119000,-487.0,0.00037592,120]
[426341380,1782326119000,-487.0,0.00037592,120]
[426341381,1782326119000,-487.0,0.00037592,120]
[426341379,1782326119000,-487.0,0.00037592,120]
[426341383,1782326119000,-487.0,0.00037592,120]
[426341377,1782326119000,-487.0,0.00037592,120]
[426341373,1782326119000,-1000.0,0.00037592,60]
[426341375,1782326119000,-487.0,0.00037592,120]
[426341374,1782326119000,-487.0,0.00037592,120]
[426341372,1782326119000,-487.0,0.00037592,120]
[426341371,1782326119000,-487.0,0.00037592,120]
[426341370,1782326119000,-487.0,0.00037592,120]
[426341369,1782326119000,-487.0,0.00037592,120]
[426341386,1782326119000,-487.0,0.00037592,120]
[426341376,1782326119000,-487.0,0.00037592,120]
[426341384,1782326119000,-487.0,0.00037592,120]
[426341387,1782326119000,-487.0,0.00037592,120]
[426341388,1782326119000,-487.0,0.00037592,120]
[426341406,1782326119000,-518.02,0.00037592,120]
[426341403,1782326119000,-518.02,0.00037592,120]
[426341404,1782326119000,-518.02,0.00037592,120]
[426341401,1782326119000,-518.02,0.00037592,120]
[426341402,1782326119000,-518.02,0.00037592,120]
[426341400,1782326119000,-518.02,0.00037592,120]
[426341399,1782326119000,-518.02,0.00037592,120]
[426341397,1782326119000,-518.02,0.00037592,120]
[426341405,1782326119000,-518.02,0.00037592,120]
[426341396,1782326119000,-518.02,0.00037592,120]
[426341395,1782326119000,-518.02,0.00037592,120]
[426341393,1782326119000,-518.02,0.00037592,120]
[426341394,1782326119000,-518.02,0.00037592,120]
[426341391,1782326119000,-1000.0,0.00037592,60]
[426341392,1782326119000,-518.02,0.00037592,120]
[426341390,1782326119000,-443.38,0.00037592,120]
[426341389,1782326119000,-487.0,0.00037592,120]
[426341398,1782326119000,-1000.0,0.00037592,60]
[426341416,1782326120000,-518.02,0.00037592,120]
[426341418,1782326120000,-518.02,0.00037592,120]
[426341422,1782326120000,-518.02,0.00037592,120]
[426341420,1782326120000,-518.02,0.00037592,120]
[426341421,1782326120000,-518.02,0.00037592,120]
[426341417,1782326120000,-518.02,0.00037592,120]
[426341419,1782326120000,-518.02,0.00037592,120]
[426341415,1782326120000,-518.02,0.00037592,120]
[426341411,1782326120000,-518.02,0.00037592,120]
[426341412,1782326120000,-325.0,0.00037592,120]
[426341413,1782326120000,-518.02,0.00037592,120]
[426341410,1782326120000,-518.02,0.00037592,120]
[426341409,1782326120000,-518.02,0.00037592,120]
[426341407,1782326120000,-518.02,0.00037592,120]
[426341408,1782326120000,-1579.0,0.00037592,120]
[426341425,1782326120000,-518.02,0.00037592,120]
[426341414,1782326120000,-518.02,0.00037592,120]
[426341424,1782326120000,-1000.0,0.00037592,30]
[426341423,1782326120000,-518.02,0.00037592,120]
[426341427,1782326120000,-518.02,0.00037592,120]
[426341441,1782326120000,-518.02,0.00037592,120]
[426341442,1782326120000,-518.02,0.00037592,120]
[426341440,1782326120000,-518.02,0.00037592,120]
[426341439,1782326120000,-518.02,0.00037592,120]
[426341437,1782326120000,-518.02,0.00037592,120]
[426341438,1782326120000,-518.02,0.00037592,120]
[426341435,1782326120000,-518.02,0.00037592,120]
[426341434,1782326120000,-518.02,0.00037592,120]
[426341443,1782326120000,-518.02,0.00037592,120]
[426341433,1782326120000,-518.02,0.00037592,120]
[426341431,1782326120000,-518.02,0.00037592,120]
[426341432,1782326120000,-518.02,0.00037592,120]
[426341430,1782326120000,-518.02,0.00037592,120]
[426341426,1782326120000,-665.0,0.00037592,120]
[426341428,1782326120000,-518.02,0.00037592,120]
[426341429,1782326120000,-518.02,0.00037592,120]
[426341436,1782326120000,-518.02,0.00037592,120]
[426341459,1782326121000,-502.5,0.00037592,30]
[426341458,1782326121000,-502.5,0.00037592,30]
[426341456,1782326121000,-1000.0,0.00037592,60]
[426341455,1782326121000,-1000.0,0.00037592,30]
[426341454,1782326121000,-1658.66,0.00037592,120]
[426341453,1782326121000,-1658.66,0.00037592,120]
[426341451,1782326121000,-1658.66,0.00037592,120]
[426341449,1782326121000,-518.02,0.00037592,120]
[426341450,1782326121000,-518.02,0.00037592,120]
[426341448,1782326121000,-518.02,0.00037592,120]
[426341447,1782326121000,-518.02,0.00037592,120]
[426341446,1782326121000,-1000.0,0.00037592,60]
[426341444,1782326121000,-735.6018662,0.00037592,120]
[426341445,1782326121000,-518.02,0.00037592,120]
[426341457,1782326121000,-3325.85,0.00037592,120]
[426341452,1782326121000,-1658.66,0.00037592,120]
[426341461,1782326121000,-502.5,0.00037592,30]
[426341460,1782326121000,-502.5,0.00037592,30]
[426341480,1782326121000,-502.5,0.00037592,30]
[426341462,1782326121000,-502.5,0.00037592,30]
[426341479,1782326121000,-502.5,0.00037592,30]
[426341477,1782326121000,-502.5,0.00037592,30]
[426341478,1782326121000,-502.5,0.00037592,30]
[426341476,1782326121000,-502.5,0.00037592,30]
[426341473,1782326121000,-502.5,0.00037592,30]
[426341474,1782326121000,-502.5,0.00037592,30]
[426341471,1782326121000,-502.5,0.00037592,30]
[426341475,1782326121000,-502.5,0.00037592,30]
[426341469,1782326121000,-502.5,0.00037592,30]
[426341472,1782326121000,-502.5,0.00037592,30]
[426341463,1782326121000,-502.5,0.00037592,30]
[426341466,1782326121000,-502.5,0.00037592,30]
[426341465,1782326121000,-502.5,0.00037592,30]
[426341464,1782326121000,-1000.0,0.00037592,60]
[426341468,1782326121000,-502.5,0.00037592,30]
[426341470,1782326121000,-502.5,0.00037592,30]
[426341467,1782326121000,-502.5,0.00037592,30]